fUST/lending_fUST_20250428
["ID","MTS","AMOUNT","RATE_DAILY","PERIOD"]
[359219902,1745834961425,-205.22257138,0.00026859,2]
[359219903,1745834961444,-232.10143966,0.00026859,2]
[359219904,1745834961465,-223.69359329,0.00026859,2]
[359219905,1745834961487,-562.42958178,0.00026859,2]
[359219906,1745834961508,-5310.45623114,0.0002686,2]
[359219908,1745834978862,-840.59878455,0.00027808,30]
[359219909,1745834979238,-293.3,0.0004108,120]
[359219910,1745834979264,-150.5,0.0004109,120]
[359219911,1745834979295,-840.59878455,0.0005,30]
[359219912,1745834979319,-881069.75927234,0.0005044,30]
[359219913,1745834979344,-2000.00000008,0.000505,120]
[359219914,1745834979368,-1800.0,0.000505,120]
[359219915,1745834979391,-316.234,0.000509,120]
[359219916,1745834979416,-403.0,0.000509,120]
[359219917,1745834979441,-500.69,0.00050999,60]
[359219918,1745834979465,-2300.0,0.00051,120]
[359219919,1745834979493,-160.0,0.00051,93]
[359219920,1745834979518,-957.65,0.00051,30]
[359219921,1745834979543,-3000.0,0.00051,85]
[359219922,1745834979567,-3000.0,0.0005101,85]
[359219923,1745834979593,-3000.0,0.0005102,85]
[359219924,1745834979619,-3000.0,0.0005103,85]
[359219925,1745834979643,-3000.0,0.0005104,85]
[359219926,1745834979669,-3000.0,0.0005105,85]
[359219927,1745834979694,-3000.0,0.0005106,85]
[359219928,1745834979718,-4724.811908,0.0005107,85]
[359219929,1745834979742,-200.0,0.000513,120]
[359219930,1745834979765,-139622.00528624,0.000517,120]
[359219931,1745834979789,-14292.91037025,0.0005188,30]
[359219932,1745834979814,-204.87175,0.00051925,120]
[359219933,1745834979839,-1000.0,0.00051999,120]
[359219934,1745834979866,-400.0,0.00052,120]
[359219935,1745834979892,-7160.40451547,0.00052,30]
[359219936,1745834979918,-160.0,0.00052,96]
[359219937,1745834979943,-6410.13596474,0.00052,120]
[359219942,1745834993224,2200.0,0.00052,30]
[359219944,1745835010119,-293.90184184,0.00051999,30]
[359219945,1745835010145,-2212.597,0.00052,30]
[359219946,1745835010171,-2000.0,0.000525,120]
[359219947,1745835010200,-15031.93286913,0.000526,30]
[359219948,1745835010225,-8928.52286373,0.00053,30]
[359219949,1745835010251,-3692.59250208,0.00053,120]
[359219950,1745835010279,-160.0,0.00053,99]
[359219951,1745835010303,-3545.34075328,0.00053,120]
[359219952,1745835010328,-1035.96178209,0.00053,120]
[359219953,1745835010354,-2311.0,0.000539,120]
[359219954,1745835010380,-680.01861734,0.00054,120]
[359219955,1745835010409,-200.0,0.00054,120]
[359219956,1745835010435,-7309.28558628,0.00054,120]
[359219957,1745835010463,-1117.50491879,0.00054,120]
[359219958,1745835010490,-160.0,0.00054,102]
[359219959,1745835010516,-10006.63649558,0.00054,120]
[359219960,1745835010543,-567.8065996,0.00054,120]
[359219961,1745835010571,-67062.54,0.00054,30]
[359219962,1745835010597,-1000.0,0.00054,60]
[359219963,1745835010623,-217.14447725,0.00054466,90]
[359219964,1745835010648,-5058.68453516,0.000545,120]
[359219965,1745835010673,-61015.68536536,0.00054556,120]
[359219966,1745835010697,-1000.0,0.00054739,90]
[359219967,1745835010722,-1000.0,0.00054739,90]
[359219968,1745835010746,-1000.0,0.00054739,90]
[359219969,1745835010770,-1000.0,0.00054739,90]
[359219970,1745835010794,-1000.0,0.00054739,90]
[359219971,1745835010819,-1000.0,0.00054739,90]
[359219972,1745835010844,-1000.0,0.00054739,90]
[359219973,1745835010869,-1000.0,0.00054739,90]
[359219974,1745835010895,-1000.0,0.00054739,90]
[359219975,1745835010921,-1000.0,0.00054739,90]
[359219976,1745835010947,-1000.0,0.00054739,90]
[359219977,1745835010973,-1000.0,0.00054739,90]
[359219978,1745835010998,-1000.0,0.00054739,90]
[359219979,1745835011026,-1000.0,0.00054739,90]
[359219980,1745835011053,-388.84034307,0.00054739,90]
[359219981,1745835011078,-154.16279959,0.00054794,120]
[359219982,1745835012609,200.0,0.00051999,120]
[359219983,1745835013615,207.4,0.00051999,120]
[359219984,1745835013685,163.5155967,0.00054793,120]
[359219985,1745835014325,215.0738,0.00051999,120]
[359219986,1745835014359,500.0,0.00054793,120]
[359219987,1745835014546,500.0,0.00054793,120]
[359219988,1745835014715,500.0,0.00054793,120]
[359219989,1745835015026,223.0315306,0.00051999,120]
[359219990,1745835015122,500.0,0.00054793,120]
[359219991,1745835015333,500.0,0.00054793,120]
[359219992,1745835015509,568.70498264,0.00054793,120]
[359219993,1745835015748,231.28369723,0.00051999,120]
[359219994,1745835016498,239.84119403,0.00051999,120]
[359219995,1745835017090,150.0,0.00049047,30]
[359219996,1745835017125,248.87351197,0.00051999,120]
[359219997,1745835017463,152.73162054,0.00054793,120]
[359219998,1745835018338,151.0,0.00054793,120]
[359219999,1745835018517,151.0,0.00054793,120]
[359220000,1745835018691,151.0,0.00054793,120]
[359220001,1745835018863,193.95656723,0.00054793,120]
[359220002,1745835019497,442.0,0.00054793,120]
[359220003,1745835019682,442.0,0.00054793,120]
[359220004,1745835019883,442.0,0.00054793,120]
[359220005,1745835020067,442.0,0.00054793,120]
[359220006,1745835020236,442.0,0.00054793,120]
[359220007,1745835020414,442.0,0.00054793,120]
[359220008,1745835020583,442.0,0.00054793,120]
[359220009,1745835020969,442.0,0.00054793,120]
[359220010,1745835021147,442.0,0.00054793,120]
[359220011,1745835021327,442.0,0.00054793,120]
[359220012,1745835021408,1780925.19868752,0.00054739,30]
[359220013,1745835021504,442.0,0.00054793,120]
[359220014,1745835021680,442.0,0.00054793,120]
[359220015,1745835021842,442.0,0.00054793,120]
[359220016,1745835022009,442.0,0.00054793,120]
[359220017,1745835022222,442.0,0.00054793,120]
[359220018,1745835022391,442.0,0.00054793,120]
[359220019,1745835022762,442.0,0.00054793,120]
[359220020,1745835022971,442.0,0.00054793,120]
[359220021,1745835023479,442.0,0.00054793,120]
[359220022,1745835023517,442.0,0.00054793,120]
[359220023,1745835023561,442.0,0.00054793,120]
[359220024,1745835023680,442.0,0.00054793,120]
[359220025,1745835023900,442.0,0.00054793,120]
[359220026,1745835024089,465.95185766,0.00054793,120]
[359220027,1745835024816,160.0,0.0004,30]
[359220028,1745835024889,151.60395604,0.00054793,120]
[359220029,1745835025286,160.0,0.0004,120]
[359220034,1745835025578,200.61965754,0.00054793,120]
[359220035,1745835025833,313.28589057,0.0004,120]
[359220036,1745835026210,153.10602342,0.00054793,120]
[359220041,1745835032207,-151.0,0.00018585,2]
[359220042,1745835032218,-151.0,0.00019954,2]
[359220043,1745835032229,-151.0,0.00021323,2]
[359220044,1745835032238,-151.0,0.00022692,2]
[359220045,1745835032248,-153.14177891,0.00024061,2]
[359220046,1745835032258,-2344.08537341,0.00024785,2]
[359220047,1745835032271,-2007.60503072,0.00024785,2]
[359220048,1745835032290,-15095.33177316,0.00024785,2]
[359220049,1745835032302,-521.61715114,0.00024785,2]
[359220050,1745835032370,-4931.36067157,0.00024785,2]
[359220051,1745835032380,-191.038909,0.00025862,2]
[359220052,1745835032390,-300.0,0.00025868,2]
[359220053,1745835032399,-451.33715853,0.00025869,2]
[359220054,1745835032408,-502.03224543,0.00025869,2]
[359220055,1745835032417,-500.0,0.00025869,2]
[359220056,1745835032426,-503.52541284,0.00025869,2]
[359220057,1745835032436,-500.0,0.00025869,2]
[359220058,1745835032446,-500.0,0.00025869,2]
[359220059,1745835032456,-500.0,0.00025869,2]
[359220060,1745835032465,-500.0,0.00025869,2]
[359220061,1745835032475,-500.0,0.00025869,2]
[359220062,1745835032484,-500.0,0.00025869,2]
[359220063,1745835032494,-500.0,0.00025869,2]
[359220064,1745835032504,-500.0,0.00025869,2]
[359220065,1745835032513,-500.0,0.00025869,2]
[359220066,1745835032523,-520.22501307,0.00025869,2]
[359220067,1745835032533,-500.0,0.00025869,2]
[359220068,1745835032544,-131.1490486,0.00025869,2]
[359220069,1745835033585,-289.7003072,0.00049315,120]
[359220070,1745835033611,-161.32254272,0.00054793,120]
[359220071,1745835033635,-151.0,0.00054793,120]
[359220072,1745835033659,-151.07563835,0.00054793,120]
[359220073,1745835033685,-151.0,0.00054793,120]
[359220074,1745835033711,-239.49175438,0.00054793,120]
[359220075,1745835033736,-500.0,0.00054793,120]
[359220076,1745835033761,-500.0,0.00054793,120]
[359220077,1745835033787,-500.0,0.00054793,120]
[359220078,1745835033812,-500.0,0.00054793,120]
[359220079,1745835033835,-500.0,0.00054793,120]
[359220080,1745835033860,-500.0,0.00054793,120]
[359220081,1745835033886,-6996.20994924,0.000548,120]
[359220082,1745835033914,-5829.87211992,0.000548,120]
[359220083,1745835033939,-545.96434953,0.00055,120]
[359220084,1745835033964,-2498.21814948,0.00055,120]
[359220085,1745835033990,-160.0,0.00055,105]
[359220086,1745835034014,-553.3572966,0.00055,120]
[359220087,1745835034040,-162.24639352,0.00055,120]
[359220088,1745835034065,-2330.68,0.00055,30]
[359220089,1745835034090,-100000.0,0.0005596,30]
[359220090,1745835034117,-200.0,0.00056,120]
[359220091,1745835034144,-318.0,0.00056,108]
[359220092,1745835034170,-3106.7149181,0.00056,60]
[359220093,1745835034196,-250.28226491,0.00056767,120]
[359220094,1745835034220,-1891.52775304,0.00057,120]
[359220095,1745835034418,500.0,0.00054793,120]
[359220096,1745835034507,406.43500258,0.00054793,120]
[359220097,1745835034606,151.0,0.00054793,120]
[359220098,1745835034640,151.0,0.00054793,120]
[359220099,1745835035015,152.96393014,0.00054793,120]
[359220100,1745835035182,151.0,0.00057234,120]
[359220101,1745835036233,151.0,0.00054793,120]
[359220102,1745835036442,151.0,0.00054793,120]
[359220103,1745835036827,152.13557836,0.00054793,120]
[359220104,1745835037266,151.0,0.00057234,120]
[359220126,1745835038059,500.0,0.00054793,120]
[359220142,1745835038219,500.0,0.00054793,120]
[359220152,1745835038300,-368.8509514,0.00025869,2]
[359220154,1745835038309,-344.18007253,0.00025869,2]
[359220156,1745835038318,-500.0,0.00025869,2]
[359220158,1745835038327,-505.10053224,0.00025873,2]
[359220159,1745835038336,-543.4143986,0.00025873,2]
[359220161,1745835038345,-500.0,0.00025873,2]
[359220163,1745835038354,-197.0278773,0.00025875,2]
[359220165,1745835038363,-220.0,0.00026859,2]
[359220167,1745835038373,-300.0,0.00026859,2]
[359220169,1745835038382,-1200.0,0.00026859,2]
[359220171,1745835038393,-46404.98537446,0.0002686,2]
[359220173,1745835038402,-4709.20452476,0.0002686,2]
[359220174,1745835038412,-193.15195313,0.00026869,2]
[359220176,1745835038421,-25040.0,0.0002687,2]
[359220178,1745835038431,-552.90748925,0.000269,7]
[359220180,1745835038440,-2433.6553413,0.00026974,4]
[359220182,1745835038449,-10000.0,0.00027187,2]
[359220184,1745835038458,-552.90748912,0.00027348,7]
[359220186,1745835038467,-155.0,0.00027382,2]
[359220188,1745835038477,-500.0,0.00027397,2]
[359220190,1745835038486,-400.0,0.00027397,2]
[359220192,1745835038497,-151.0,0.00027397,7]
[359220194,1745835038506,-500.77010991,0.00027397,2]
[359220211,1745835038651,-509.39,0.00027397,2]
[359220213,1745835038661,-500.0,0.00027397,2]
[359220215,1745835038670,-495.63,0.00027397,2]
[359220217,1745835038679,-400.0,0.00027397,2]
[359220219,1745835038689,-501.81232517,0.00027397,2]
[359220221,1745835038698,-400.0,0.00027397,2]
[359220223,1745835038708,-871.39,0.00027397,2]
[359220225,1745835038717,-500.0,0.00027397,2]
[359220227,1745835038726,-501.34211977,0.00027397,2]
[359220229,1745835038735,-400.0,0.00027397,2]
[359220231,1745835038744,-400.0,0.00027397,2]
[359220233,1745835038754,-400.0,0.00027397,2]
[359220235,1745835038763,-400.0,0.00027397,2]
[359220236,1745835038772,-519.02725028,0.00027397,2]
[359220238,1745835038782,-400.0,0.00027397,2]
[359220240,1745835038791,-903.669958,0.00027397,2]
[359220241,1745835038801,-500.0,0.00027397,5]
[359220243,1745835038810,-162.36265043,0.0002766,2]
[359220244,1745835038819,-400.0,0.00027671,2]
[359220246,1745835038828,-495.63,0.00027671,2]
[359220248,1745835038838,-400.0,0.00027671,2]
[359220249,1745835038848,-400.0,0.00027671,2]
[359220251,1745835038857,-871.39,0.00027671,2]
[359220253,1745835038868,-400.0,0.00027671,2]
[359220254,1745835038878,-400.0,0.00027671,2]
[359220256,1745835038887,-400.0,0.00027671,2]
[359220257,1745835038897,-400.0,0.00027671,2]
[359220259,1745835038907,-400.0,0.00027671,2]
[359220261,1745835038917,-162.36265042,0.00027679,2]
[359220262,1745835038927,-1510.55211432,0.0002768,2]
[359220264,1745835038937,-218.25,0.000277,2]
[359220266,1745835038946,-160.0,0.00027748,10]
[359220267,1745835038955,-33471.35569557,0.00027749,2]
[359220274,1745835039037,-14193.0,0.00027749,2]
[359220276,1745835039054,-54103.48072944,0.00027749,2]
[359220277,1745835039065,-1663.04678599,0.00027749,2]
[359220279,1745835039075,-2477.42885522,0.00027749,2]
[359220283,1745835039111,500.0,0.00054793,120]
[359220287,1745835039152,500.0,0.00054793,120]
[359220291,1745835039192,500.0,0.00054793,120]
[359220295,1745835039236,500.0,0.00054793,120]
[359220299,1745835039277,500.0,0.00054793,120]
[359220308,1745835039383,446.98340248,0.00054793,120]
[359220339,1745835040447,500.0,0.00054793,120]
[359220343,1745835040561,-945.14926745,0.00027397,2]
[359220348,1745835040645,500.0,0.00054793,120]
[359220356,1745835040850,302.0,0.00054793,120]
[359220357,1745835041730,500.0,0.00048164,120]
[359220358,1745835042271,166.95046862,0.00057234,120]
[359220359,1745835042301,204.94675578,0.00054793,120]
[359220360,1745835042631,769.76,0.00057533,30]
[359220368,1745835042860,769.76,0.00057533,30]
[359220373,1745835043125,769.76,0.00057533,30]
[359220374,1745835043213,-799.94073255,0.00027397,2]
[359220375,1745835043223,-220.96439348,0.00027397,2]
[359220376,1745835043234,-400.0,0.00027397,2]
[359220377,1745835043245,-400.0,0.00027397,2]
[359220379,1745835043254,-1745.09,0.00027671,2]
[359220380,1745835043265,-400.0,0.00027671,2]
[359220382,1745835043275,-400.0,0.00027671,2]
[359220383,1745835043284,-6940.9801943,0.00027749,2]
[359220384,1745835043293,-160.0,0.00027758,10]
[359220385,1745835043306,-165.29357662,0.00027758,10]
[359220386,1745835043316,-624.99,0.00027759,3]
[359220389,1745835043326,-312.5,0.00027759,3]
[359220392,1745835043335,-156.25,0.00027759,3]
[359220394,1745835043344,-468.77,0.00027759,3]
[359220396,1745835043354,-151.0,0.00027759,7]
[359220398,1745835043364,-151.0,0.00027759,7]
[359220399,1745835043373,-151.0,0.00027759,7]
[359220400,1745835043383,-153.57133,0.00027759,7]
[359220401,1745835043392,-154.110854,0.00027759,7]
[359220402,1745835043402,-154.110854,0.00027759,7]
[359220403,1745835043411,-154.110854,0.00027759,7]
[359220404,1745835043421,-154.110854,0.00027759,7]
[359220405,1745835043430,-77969.02606875,0.00027759,2]
[359220406,1745835043454,-42582.95972856,0.00027759,2]
[359220407,1745835043482,769.76,0.00057533,30]
[359220408,1745835043933,152.53139296,0.00057234,120]
[359220409,1745835044165,769.76,0.00057533,30]
[359220410,1745835044579,769.76,0.00057533,30]
[359220411,1745835044756,151.0,0.00057234,120]
[359220412,1745835044797,151.0,0.00057234,120]
[359220413,1745835044842,769.76,0.00057533,30]
[359220414,1745835044897,200.07077151,0.00057234,120]
[359220415,1745835044927,403.0,0.00050299,120]
[359220416,1745835045070,769.76,0.00057533,30]
[359220417,1745835045298,769.76,0.00057533,30]
[359220418,1745835045529,769.76,0.00057533,30]
[359220420,1745835046223,-400.0,0.00027397,2]
[359220421,1745835046234,-200.0,0.00027671,2]
[359220422,1745835046244,-279.999999,0.00027759,2]
[359220424,1745835047219,-902.97666268,0.00027759,2]
[359220425,1745835047231,-898.40528876,0.00027759,2]
[359220426,1745835047267,500.0,0.00057234,120]
[359220427,1745835047296,500.0,0.00057234,120]
[359220428,1745835047435,500.0,0.00057234,120]
[359220429,1745835047623,155.39338486,0.00057234,120]
[359220430,1745835107001,-150.0,0.00039542,120]
[359220431,1745835107027,-2000.0,0.00039542,120]
[359220432,1745835107052,-2961.0,0.00039542,120]
[359220433,1745835107076,-755.0,0.00039542,31]
[359220434,1745835107101,-754.0,0.00039542,31]
[359220435,1745835107126,-754.0,0.00039542,31]
[359220436,1745835107150,-754.0,0.00039542,31]
[359220437,1745835107175,-296.0,0.00039542,31]
[359220438,1745835107199,-150.0,0.00039542,31]
[359220439,1745835107224,-1184.0,0.00039542,31]
[359220440,1745835107248,-592.0,0.00039542,31]
[359220441,1745835107276,-2306.0,0.00039542,31]
[359220442,1745835107302,-1496.0,0.00039542,31]
[359220443,1745835107326,-3660.0,0.00039542,31]
[359220444,1745835107352,-2369.0,0.00039542,31]
[359220445,1745835107377,-265.0,0.00039542,31]
[359220446,1745835107401,-150.0,0.00039542,31]
[359220447,1745835107427,-1060.0,0.00039542,31]
[359220448,1745835107451,-530.0,0.00039542,31]
[359220449,1745835107476,-2064.0,0.00039542,31]
[359220450,1745835107502,-1339.0,0.00039542,31]
[359220451,1745835107527,-3275.0,0.00039542,31]
[359220452,1745835107551,-2120.0,0.00039542,31]
[359220453,1745835107574,-1183.0,0.00039542,31]
[359220454,1745835107598,-1180.0,0.00039542,31]
[359220455,1745835107622,-1180.0,0.00039542,31]
[359220456,1745835107646,-1180.0,0.00039542,31]
[359220457,1745835107669,-1427.64857287,0.00039542,80]
[359220458,1745835107694,-50000.0,0.00039542,30]
[359220459,1745835107719,-50000.0,0.00039542,30]
[359220460,1745835107742,-50000.0,0.00039542,30]
[359220461,1745835107765,-50422.012,0.00039542,30]
[359220462,1745835107789,-506.38459945,0.00039542,120]
[359220463,1745835107813,-414.21209958,0.00039542,120]
[359220464,1745835107836,-612.27494611,0.00039542,30]
[359220465,1745835107859,-903.68218517,0.00039542,120]
[359220466,1745835107883,-244.83135842,0.00039542,60]
[359220467,1745835107906,-165.16761696,0.00039542,31]
[359220468,1745835107930,-1175.55392999,0.00039542,30]
[359220469,1745835107954,-481.32136088,0.00039542,120]
[359220470,1745835107978,-259.85359809,0.00039542,120]
[359220471,1745835108002,-543.23825761,0.00039542,120]
[359220472,1745835108026,-345.01638675,0.00039542,60]
[359220473,1745835108051,-910.02167888,0.00039542,120]
[359220474,1745835108075,-1642.33446941,0.00039542,120]
[359220475,1745835108102,-1363.68267505,0.00039542,120]
[359220476,1745835108127,-839.3830559,0.00039542,120]
[359220477,1745835108153,-683.90239323,0.00039542,120]
[359220478,1745835108179,-272.14934536,0.00039542,31]
[359220479,1745835108203,-240.82074905,0.00039542,120]
[359220480,1745835108233,-224.29611844,0.00039542,120]
[359220481,1745835108259,-518.9439204,0.00039542,30]
[359220482,1745835108284,-1341.77164465,0.00039542,120]
[359220483,1745835108310,-2000.0,0.00039542,120]
[359220484,1745835108335,-242.41813582,0.00039542,30]
[359220485,1745835108361,-1093.56705963,0.00039542,120]
[359220486,1745835108387,-187.16152517,0.00039542,30]
[359220487,1745835108411,-662.81520979,0.00039542,120]
[359220488,1745835108436,-1001.05376509,0.00039542,120]
[359220489,1745835108462,-180.74092785,0.00039542,30]
[359220490,1745835108487,-443.39521296,0.00039542,120]
[359220491,1745835108512,-730.14182103,0.00039542,120]
[359220492,1745835108536,-423.8296373,0.00039542,120]
[359220493,1745835108669,-302.0744942,0.00039542,120]
[359220494,1745835108696,-1477.71549915,0.00039542,120]
[359220495,1745835108720,-214.52620771,0.00039542,120]
[359220496,1745835108744,-1960.17711452,0.00039542,120]
[359220497,1745835108768,-314.94278755,0.00039542,120]
[359220498,1745835108793,-202.45129494,0.00039542,120]
[359220499,1745835108817,-504.61424736,0.00039542,30]
[359220500,1745835108844,-176.71606152,0.00039542,30]
[359220501,1745835108870,-1761.84443682,0.00039542,120]
[359220502,1745835108897,-235.34151415,0.00039542,30]
[359220503,1745835108923,-1325.91241901,0.00039542,60]
[359220504,1745835108949,-152.05732234,0.00039542,120]
[359220505,1745835108975,-536.78471599,0.00039542,120]
[359220506,1745835109000,-1072.83258539,0.00039542,120]
[359220507,1745835109026,-430590.70475461,0.00039542,120]
[359220508,1745835109051,-395.0,0.00039542,120]
[359220509,1745835109077,-271.8,0.00039542,120]
[359220510,1745835109103,-100000.0,0.00039542,30]
[359220511,1745835109128,-100000.0,0.00039542,30]
[359220512,1745835109153,-18981.0,0.00039542,30]
[359220513,1745835109178,-81312.87828785,0.00039542,30]
[359220514,1745835121478,-18687.12171215,0.00039542,30]
[359220515,1745835121505,-160.0,0.00039542,30]
[359220516,1745835121531,-160.0,0.00039542,30]
[359220517,1745835121556,-160.0,0.00039542,30]
[359220518,1745835121582,-160.0,0.00039542,30]
[359220519,1745835121608,-160.0,0.00039542,30]
[359220520,1745835121634,-160.0,0.00039542,30]
[359220521,1745835121659,-306.199999,0.00039542,30]
[359220522,1745835121685,-2000.0,0.00039542,30]
[359220523,1745835121710,-44721.0,0.00039542,30]
[359220524,1745835121736,-150.0,0.00039542,90]
[359220525,1745835121762,-32174.57548312,0.00039542,120]
[359220526,1745835121789,-60226.78719954,0.00039542,30]
[359220527,1745835121815,-2000.0,0.00039542,30]
[359220528,1745835121842,-939.199999,0.00039542,30]
[359220529,1745835121868,-618.0,0.00039542,120]
[359220530,1745835121895,-1000.0,0.00039542,120]
[359220531,1745835121924,-1000.0,0.00039542,120]
[359220532,1745835121949,-500.0,0.00039542,120]
[359220533,1745835121975,-989.0,0.00039542,120]
[359220534,1745835122002,-32178.0,0.00039542,30]
[359220535,1745835122027,-100000.0,0.00039542,30]
[359220536,1745835122054,-100000.0,0.00039542,30]
[359220669,1745836146129,-153.01388502,0.000168,2]
[359220670,1745836146149,-151.0,0.00018585,2]
[359220671,1745836146171,-357.89529919,0.00019205,5]
[359220672,1745836146193,-200.29987475,0.000199,2]
[359220673,1745836146213,-1176.37970537,0.0002,2]
[359220674,1745836146232,-2758.34777714,0.0002,2]
[359220675,1745836146252,-200.29987471,0.00020386,2]
[359220676,1745836146271,-338.564959,0.00020615,2]
[359220677,1745836146291,-200.29987471,0.00020873,2]
[359220678,1745836146315,-858.0437754,0.000209,3]
[359220679,1745836146335,-300.0,0.00020999,2]
[359220680,1745836146355,-9512.16122278,0.00021,5]
[359220681,1745836146378,-200.29987471,0.00021359,2]
[359220682,1745836146401,-858.04377513,0.00021555,3]
[359220683,1745836146426,-152.68707532,0.00021945,2]
[359220684,1745836146460,-1309.44246507,0.00021945,2]
[359220685,1745836146485,-47669.60156725,0.00022,2]
[359220686,1745836146516,-932.70328562,0.00022,7]
[359220687,1745836146543,-500.0,0.00022045,2]
[359220688,1745836146577,-500.0,0.00022045,2]
[359220689,1745836146602,-500.0,0.00022045,2]
[359220690,1745836146623,-237.32295127,0.00022045,2]
[359220691,1745836146651,-500.0,0.00022045,2]
[359220692,1745836146673,-500.0,0.00022045,2]
[359220693,1745836146701,-500.0,0.00022045,2]
[359220694,1745836146729,-500.0,0.00022045,2]
[359220695,1745836146756,-500.0,0.00022045,2]
[359220696,1745836146779,-500.0,0.00022045,2]
[359220697,1745836146801,-500.0,0.00022045,2]
[359220698,1745836146825,-500.0,0.00022045,2]
[359220699,1745836146847,-500.0,0.00022045,2]
[359220700,1745836146871,-500.0,0.00022045,2]
[359220701,1745836146893,-500.0,0.00022045,2]
[359220702,1745836146913,-500.1961805,0.00022045,2]
[359220703,1745836146938,-500.0,0.00022045,2]
[359220704,1745836146961,-500.0,0.00022045,2]
[359220705,1745836146983,-270.7335766,0.00022045,2]
[359220706,1745836147011,-500.0,0.00022045,2]
[359220707,1745836147037,-500.0,0.00022045,2]
[359220708,1745836147061,-500.0,0.00022045,2]
[359220709,1745836147085,-500.0,0.00022045,2]
[359220710,1745836147109,-500.0,0.00022045,2]
[359220711,1745836147133,-500.0,0.00022045,2]
[359220712,1745836147156,-300.00000006,0.00022045,2]
[359220713,1745836147181,-500.0,0.00022045,2]
[359220714,1745836147207,-500.0,0.00022045,2]
[359220715,1745836147232,-500.0,0.00022045,2]
[359220716,1745836147256,-500.0,0.00022045,2]
[359220717,1745836147281,-500.0,0.00022045,2]
[359220718,1745836147305,-500.0,0.00022045,2]
[359220719,1745836147328,-500.0,0.00022045,2]
[359220720,1745836147352,-500.0,0.00022045,2]
[359220721,1745836147376,-500.0,0.00022045,2]
[359220722,1745836147401,-500.0,0.00022045,2]
[359220723,1745836147427,-500.0,0.00022045,2]
[359220724,1745836147453,-500.0,0.00022045,2]
[359220725,1745836147478,-500.0,0.00022045,2]
[359220726,1745836147504,-500.0,0.00022045,2]
[359220727,1745836147530,-500.0,0.00022045,2]
[359220728,1745836147553,-500.0,0.00022045,2]
[359220729,1745836147572,-500.0,0.00022045,2]
[359220730,1745836147593,-500.0,0.00022045,2]
[359220731,1745836147623,-452.18183742,0.00022045,2]
[359220732,1745836147651,-500.0,0.00022045,2]
[359220733,1745836147673,-206.01572077,0.00022045,2]
[359220734,1745836147702,-553.96473975,0.00022045,2]
[359220735,1745836147728,-553.96473975,0.00022045,2]
[359220736,1745836147754,-553.96473975,0.00022045,2]
[359220737,1745836147778,-553.96473975,0.00022045,2]
[359220738,1745836147803,-553.96473975,0.00022045,2]
[359220739,1745836147828,-553.96473975,0.00022045,2]
[359220740,1745836147853,-553.96473975,0.00022045,2]
[359220741,1745836147877,-553.96473975,0.00022045,2]
[359220742,1745836147902,-553.96473975,0.00022045,2]
[359220743,1745836147925,-500.0,0.00022045,2]
[359220744,1745836148097,-553.96473975,0.00022045,2]
[359220745,1745836148121,-500.0,0.00022045,2]
[359220746,1745836148147,-553.96473975,0.00022045,2]
[359220747,1745836148171,-500.0,0.00022045,2]
[359220748,1745836148198,-553.96473975,0.00022045,2]
[359220749,1745836148220,-500.0,0.00022045,2]